Cogmind - Beta 13 X1 *** ADVENTURER MODE // 2023.07.25 @ 11:42:26 Player: Minty Result: Self-destructed Performance ------------- Evolutions (2) 1000 Regions Visited (5) 1000 Robots Destroyed (46) 230 Value Destroyed (1545) 1545 Prototype IDs (6) 120 Alien Tech Used (0) 0 Bonus (256) 256 TOTAL SCORE: 4151 Bonus ------- High Alert Combat Kills 124 Follower Combat Kills 120 Entered Garrisons 200 Friendly Fire -188 Cogmind --------- Core Integrity 101/550 Matter 256/300 Energy 99/100 System Corruption 0% Temperature Cool (40) Movement Core (50) Location -8/Garrison Parts ------- > --- POWER (1) -------- (None) > --- PROPULSION (3) --- (None) > --- UTILITY (3) ------ (None) > --- WEAPON (4) ------- (None) > --- INVENTORY (5) ---- Hardened Medium Armor Plating Hardened Medium Armor Plating System Shield Relay Coupler [NC] (35) Relay Coupler [Swarmer] (50) Peak State ------------ > --- POWER ------------ Light Angular Momentum Engine > --- PROPULSION ------- Armored Treads Armored Treads Armored Treads > --- UTILITY ---------- Improved Heat Sink Small Storage Unit Hardened Medium Armor Plating > --- WEAPON ----------- Medium Laser Beam Rifle High-powered Shotgun High-powered Shotgun > --- INVENTORY -------- Hardened Medium Armor Plating Hardened Medium Armor Plating Hacking Suite System Shield Relay Coupler [NC] Relay Coupler [Swarmer] Relay Coupler [Grunt] Relay Coupler [Specialist] [Rating: 32] Favorites ----------- Power Ion Engine Engine Ion Engine Propulsion Armored Treads Treads Armored Treads Leg Aluminum Leg Hover Unit Hover Unit Utility Small Storage Unit Device Sensor Array Storage Small Storage Unit Protection Hardened Medium Armor Plating Weapon High-powered Shotgun Energy Gun Medium Laser Ballistic Gun High-powered Shotgun Build | -11 -10 -10 -9 -8 -8 ------- Run | Jun Mat Min Mat Mat Gar Slots Evolved 4 | . . . 2 2 . Power . | . . . . . . Propulsion 1 | . . . 1 . . Utility 1 | . . . . 1 . Weapon 2 | . . . 1 1 . Parts Attached 28 | . 7 2 4 9 6 Power 3 | . . . 1 . 2 Engine 3 | . . . 1 . 2 Core . | . . . . . . Reactor . | . . . . . . Propulsion 8 | . 2 1 2 3 . Treads 3 | . . . . 3 . Leg 1 | . . 1 . . . Wheel . | . . . . . . Hover 4 | . 2 . 2 . . Flight . | . . . . . . Utility 8 | . 2 . . 2 4 Device 5 | . 2 . . 1 2 Storage . | . . . . . . Processor . | . . . . . . Hackware . | . . . . . . Protection 3 | . . . . 1 2 Artifact . | . . . . . . Weapon 9 | . 3 1 1 4 . Energy Gun 4 | . 2 1 . 1 . Energy Cannon . | . . . . . . Ballistic Gun 5 | . 1 . 1 3 . Ballistic Cannon . | . . . . . . Launcher . | . . . . . . Special Weapon . | . . . . . . Impact Weapon . | . . . . . . Slashing Weapon . | . . . . . . Piercing Weapon . | . . . . . . Special Melee Weapon . | . . . . . . Unidentified Prototypes . | . . . . . . Parts Lost 1 | . . 1 . . . Power . | . . . . . . Propulsion 1 | . . 1 . . . Utility . | . . . . . . Weapon . | . . . . . . Highest Loss Streak 1 | . . 1 . . . To Critical Strikes . | . . . . . . Average Slot Usage (%) 92 | . 85 98 91 98 91 Engine 10 | . 14 14 11 9 8 Treads 13 | . . . . 24 24 Leg 3 | . 9 9 2 . . Hover 8 | . 12 17 23 1 . Device 11 | . 10 14 11 17 8 Storage 10 | . 14 14 11 9 8 Protection 3 | . . . . . 8 Energy Gun 14 | . 14 13 11 12 16 Ballistic Gun 16 | . 9 14 20 23 16 Naked Turns 36 | . . . . . 36 Heaviest Build 34 | 13 15 14 15 29 34 Greatest Support 60 | 20 20 12 18 60 60 Greatest Overweight (x) 5 | . 2 2 1 . 5 Average Overweight (x) . | . . . . . . Largest Inventory Capacity 8 | . 8 8 8 8 8 Average Capacity 7 | . 8 8 8 8 7 Most Carried 8 | . 8 7 7 8 8 Average Carried 7 | . 7 6 6 7 7 Final Capacity 8 | 8 8 8 8 8 5 Final Carried 8 | 6 7 6 7 8 5 Class Distribution -------------------- 34% | Mutant 34% | Tank 25% | Skirmisher 5% | Scavenger-Skirmisher Dominant Class ---------------- Mutant | -10/Materials Mutant | -10/Mines Skirmisher | -9/Materials Skirmisher | -8/Materials Tank | -8/Garrison Resources | -11 -10 -10 -9 -8 -8 ----------- Run | Jun Mat Min Mat Mat Gar Matter Collected 820 | 194 54 59 98 175 240 Remotely . | . . . . . . Salvage Created 1478 | . 157 88 385 257 591 Parts 87 | . 14 2 15 19 37 Haulers Intercepted 1 | . . . 1 . . Recyclers Shooed . | . . . . . . Parts Field Recycled . | . . . . . . Retrieved Matter . | . . . . . . Parts Self-Destructed . | . . . . . . Prevented . | . . . . . . Kills | -11 -10 -10 -9 -8 -8 ------- Run | Jun Mat Min Mat Mat Gar Combat Hostiles Destroyed 38 | . 2 2 7 8 19 Guns 38 | . 2 2 7 8 19 Classes Destroyed 8 | . 2 . 5 1 . Builder 1 | . . . 1 . . Hauler 1 | . . . 1 . . Recycler 1 | . . . . 1 . Operator 1 | . . . 1 . . Watcher 3 | . 2 . . 1 . Swarmer 17 | . . . 1 6 10 Grunt 16 | . 2 2 5 . 7 Sentry 5 | . . . 1 2 2 Thug 1 | . . . . . 1 Best Kill Streak 7 | . 3 1 5 5 7 Combat Bots Only 7 | . 2 1 4 5 7 Max Kills in Single Turn 3 | . 1 1 2 2 3 Gunslinging 1 | . . . . 1 1 Exploded . | . . . . . . Melee . | . . . . . . Uniques/NPCs Destroyed . | . . . . . . Combat | -11 -10 -10 -9 -8 -8 -------- Run | Jun Mat Min Mat Mat Gar Damage Taken 1825 | . 170 98 101 149 1307 Core 546 | . 57 32 8 5 444 Absorbed by Shields 55 | . . . . . 55 Ignored by Resistances 552 | . 51 27 32 48 394 Regen/Repaired (Parts) 28 | . . . 28 . . Core Remaining (%) 87 | 100 . 64 98 . . Volleys Fired 91 | . 16 13 19 12 31 Largest 4 | . 2 2 3 4 4 Hottest 156 | . 80 70 90 156 156 Shots Fired 265 | . 27 23 57 46 112 Gun 265 | . 27 23 57 46 112 Cannon . | . . . . . . Launcher . | . . . . . . Special . | . . . . . . Kinetic 138 | . 5 12 38 29 54 Thermal 105 | . . 11 19 17 58 Explosive . | . . . . . . Electromagnetic 22 | . 22 . . . . Robot Hit Streak 16 | . 6 11 11 13 16 Robot Miss Streak 10 | . 1 1 3 5 10 Penetration Max . | . . . . . . Secondary Targets 12 | . 2 . 2 1 7 Max Gunslinging Chain 2 | . 1 . 1 1 2 Shots Hit Robots 172 | . 21 18 39 25 69 Core Hits 86 | . 7 6 21 15 37 Critical Kills 2 | . . . . 1 1 Critical Parts Destroyed 1 | . . . 1 . . Critical Strikes 9 | . . 1 2 3 3 Burn 6 | . . 1 1 2 2 Destroy 3 | . . . 1 1 1 Melee Attacks . | . . . . . . Impact . | . . . . . . Slashing . | . . . . . . Piercing . | . . . . . . Sneak Attacks . | . . . . . . Combat Hostiles . | . . . . . . Follow-up Attacks . | . . . . . . Damage Inflicted 2546 | . 285 186 415 384 1276 Guns 2540 | . 285 186 415 384 1270 Cannons . | . . . . . . Explosions . | . . . . . . Melee . | . . . . . . Ramming 6 | . . . . . 6 Kinetic 1389 | . 29 63 216 280 801 Thermal 895 | . . 123 199 104 469 Explosive . | . . . . . . Electromagnetic 256 | . 256 . . . . Impact . | . . . . . . Slashing . | . . . . . . Piercing . | . . . . . . Highest Corruption 2 | . 2 2 . . . Average Corruption 1 | . 1 2 . . . Corruption Purged . | . . . . . . Corruption Blocked . | . . . . . . Effects 7 | . 2 5 . . . Matter Fused 2 | . 1 1 . . . Heat Flow Errors 1 | . . 1 . . . Data Loss (minor) 1 | . . 1 . . . Weapon Failures 3 | . 1 2 . . . Overload Shots . | . . . . . . Overflow Damage . | . . . . . . Projectiles . | . . . . . . Explosions . | . . . . . . Melee . | . . . . . . Knockbacks . | . . . . . . Impact . | . . . . . . Kinetic . | . . . . . . Secondary . | . . . . . . Self-Inflicted Damage 3 | . . . . . 3 Shots . | . . . . . . Rammed 1 | . . . . . 1 Targets Rammed 1 | . . . . . 1 Kicked . | . . . . . . Crushed . | . . . . . . Highest Temperature 356 | . 257 253 356 102 292 Average Temperature 109 | . 113 103 133 33 115 Received Heat Transfer 869 | . 141 108 63 9 548 Effects 1 | . . . 1 . . Shutdowns 1 | . . . 1 . . Siege Activations . | . . . . . . Robots Corrupted . | . . . . . . Combat Hostiles . | . . . . . . Parts Fried . | . . . . . . Impact Corruptions . | . . . . . . Robots Melted . | . . . . . . Combat Hostiles . | . . . . . . Parts Melted 2 | . . . 1 . 1 Heat Transferred 2997 | . . 444 666 444 1443 Parts Sabotaged . | . . . . . . Parts Stolen . | . . . . . . Parts Stripped . | . . . . . . Power Chain Reactions . | . . . . . . Missiles Intercepted . | . . . . . . Alert | -11 -10 -10 -9 -8 -8 ------- Run | Jun Mat Min Mat Mat Gar Peak Influence 932 | . 93 90 314 339 932 Initial 192 | . . 35 29 112 192 Average 261 | . 31 84 120 205 523 Maximum Alert Level 3 | . . . 1 1 3 Low Security (%) 54 | . 100 100 72 62 3 Level 1 20 | . . . 27 37 28 Level 2 17 | . . . . . 47 Level 3 7 | . . . . . 20 Level 4 . | . . . . . . Level 5 . | . . . . . . High Security . | . . . . . . Max Security . | . . . . . . Squads Dispatched 5 | . 1 . 2 2 . Investigation 3 | . 1 . 2 . . Extermination . | . . . . . . Reinforcement . | . . . . . . Assault . | . . . . . . Garrison 2 | . . . . 2 . Intercept . | . . . . . . Searches Triggered . | . . . . . . Construction Impeded . | . . . . . . Haulers Reinforced . | . . . . . . Active Scanning Responses . | . . . . . . Cargo Convoy Interrupts . | . . . . . . Stealth | -11 -10 -10 -9 -8 -8 --------- Run | Jun Mat Min Mat Mat Gar Distress Signals 2 | . 1 . . 1 . Communications Jammed . | . . . . . . Distress Signals . | . . . . . . Times Spotted 70 | . 5 2 11 9 43 Peak Tracking Total 18 | . 3 2 4 4 18 Tactical Retreats 4 | . 1 . 1 . 2 Traps | -11 -10 -10 -9 -8 -8 ------- Run | Jun Mat Min Mat Mat Gar Traps Triggered 6 | . 3 . 1 . 2 Indirectly . | . . . . . . Trap Hack Attempts . | . . . . . . Triggered . | . . . . . . Disarmed . | . . . . . . Reprogrammed . | . . . . . . Reused . | . . . . . . Traps Extracted . | . . . . . . Installed . | . . . . . . Triggered . | . . . . . . Machines | -11 -10 -10 -9 -8 -8 ---------- Run | Jun Mat Min Mat Mat Gar Machines Disabled 2 | . . . . . 2 Max in Single Turn 1 | . . . . . 1 Garrison Relay 2 | . . . . . 2 Machines Repaired . | . . . . . . Machines Sabotaged . | . . . . . . Overloaded Fab Kills . | . . . . . . Hacking | -11 -10 -10 -9 -8 -8 --------- Run | Jun Mat Min Mat Mat Gar Machines Accessed 9 | . 3 . 4 1 1 Terminals 7 | . 3 . 3 . 1 Fabricators . | . . . . . . Repair Stations 1 | . . . 1 . . Recycling Units . | . . . . . . Scanalyzers . | . . . . . . Garrison Access 1 | . . . . 1 . Total Hacks 42 | . 13 . 23 2 4 Successful 26 | . 9 . 15 1 1 Failed 16 | . 4 . 8 1 3 Catastrophic 3 | . 2 . 1 . . Database Lockouts . | . . . . . . Manual 13 | . 5 . 8 . . Terminals 36 | . 13 . 19 . 4 Fabricators . | . . . . . . Repair Stations 4 | . . . 4 . . Recycling Units . | . . . . . . Scanalyzers . | . . . . . . Garrison Access 2 | . . . . 2 . Terminal Hacks 16 | . 7 . 8 . 1 Robot Analysis 1 | . . . 1 . . Prototype ID Bank 6 | . 6 . . . . Open Door 1 | . . . . . 1 Emergency Access Points 1 | . . . 1 . . Alert Level 2 | . . . 2 . . Locate Traps 2 | . 1 . 1 . . Dispatch Records 1 | . . . 1 . . Security Status 1 | . . . 1 . . Hauler Manifests 1 | . . . 1 . . Fabricator Hacks . | . . . . . . Repair Station Hacks 3 | . . . 3 . . Scan Component 1 | . . . 1 . . Repair 1 | . . . 1 . . Refit 1 | . . . 1 . . Recycling Unit Hacks . | . . . . . . Scanalyzer . | . . . . . . Garrison Access Hacks 1 | . . . . 1 . Unlock Access 1 | . . . . 1 . Unauthorized Hacks 6 | . 2 . 4 . . Terminals 6 | . 2 . 4 . . Track 1 | . . . 1 . . Botnet 5 | . 2 . 3 . . Fabricators . | . . . . . . Repair Stations . | . . . . . . Recycling Units . | . . . . . . Scanalyzers . | . . . . . . Garrison Access . | . . . . . . Data Cores Recovered 1 | . . . 1 . . Used . | . . . . . . Hacking Detections 8 | . 3 . 3 1 1 Full Trace Events 4 | . 2 . 2 . . Feedback Events . | . . . . . . Feedback Blocked . | . . . . . . Robot Schematics Acquired . | . . . . . . Robots Built . | . . . . . . Authchips . | . . . . . . Time . | . . . . . . Total Robot Build Rating . | . . . . . . Part Schematics Acquired . | . . . . . . Parts Built . | . . . . . . Authchips . | . . . . . . Time . | . . . . . . Total Part Build Rating . | . . . . . . Parts Repaired 1 | . . . 1 . . Time 26 | . . . 26 . . Parts Recycled . | . . . . . . Recycled Matter . | . . . . . . Retrieved Matter . | . . . . . . Retrieved Components . | . . . . . . Parts Scanalyzed . | . . . . . . Part Schematics Acquired . | . . . . . . Parts Damaged . | . . . . . . Bothacking | -11 -10 -10 -9 -8 -8 ------------ Run | Jun Mat Min Mat Mat Gar Used RIF Installer . | . . . . . . Robots Hacked . | . . . . . . Non-combat . | . . . . . . Combat . | . . . . . . Robot Hacks Applied . | . . . . . . Relay Couplers Released 8 | . . . . . 8 Machine Destruction 8 | . . . . . 8 Fabnet Peak Effective % . | . . . . . . Robots Rewired . | . . . . . . Allies Hacked . | . . . . . . Hacks Repelled . | . . . . . . Allies | -11 -10 -10 -9 -8 -8 -------- Run | Jun Mat Min Mat Mat Gar Total Allies 4 | . . 2 . . 2 Largest Group 2 | . . 2 2 . 2 Highest-Rated Group 51 | . . 45 45 . 51 Highest-Rated Ally 31 | . . 31 31 . 31 Total Orders . | . . . . . . Ally Attacks 35 | . . . 14 . 21 Total Damage 555 | . . . 191 . 364 Kills 8 | . . . 3 . 5 Allies Corrupted . | . . . . . . Allies Melted . | . . . . . . Intel | -11 -10 -10 -9 -8 -8 ------- Run | Jun Mat Min Mat Mat Gar Robot Analysis Total 1 | . . . 1 . . Derelict Logs Recovered 2 | . . 2 . . . Drone Launches . | . . . . . . Drone Recoveries . | . . . . . . Exploration | -11 -10 -10 -9 -8 -8 ------------- Run | Jun Mat Min Mat Mat Gar Turns Passed 1300 | . 181 235 202 208 474 Spaces Moved 693 | 1 115 116 126 91 244 Core 58 | . . . . . 58 Treads 269 | . . . . 83 186 Legs 153 | 1 40 88 24 . . Wheels . | . . . . . . Hover 213 | . 75 28 102 8 . Flight . | . . . . . . Fastest Speed 50 | 120 56 56 65 65 50 Average Speed 133 | 120 102 170 88 160 142 Slowest Speed 300 | 120 180 190 190 170 300 Overloaded Moves . | . . . . . . Propulsion Burnouts . | . . . . . . Robots Hopped . | . . . . . . Cave-ins Triggered . | . . . . . . Exploration Rate (%) 21 | 2 26 39 13 8 41 Regions Visited 5 Branch Regions 1 Pre-discovered Areas . | . . . . . . Known Exits Taken 1 | . . . . 1 . Unknown Exits Taken 4 | 1 1 1 1 . . Scrap Searched 2 | . . 2 . . . Spaces Dug . | . . . . . . Terrain Destroyed . | . . . . . . Melee . | . . . . . . Projectile . | . . . . . . AOE . | . . . . . . Terrain Rammed . | . . . . . . Walls Destroyed . | . . . . . . Machines Disabled . | . . . . . . Actions | -11 -10 -10 -9 -8 -8 --------- Run | Jun Mat Min Mat Mat Gar Total 897 | . 154 131 181 127 304 Wait 31 | . . . 29 . 2 Move 687 | . 114 115 125 91 242 Hop . | . . . . . . Pick Up 17 | . 7 . 1 4 5 Fast Attach 11 | . 3 2 1 5 . Attach 10 | . 3 . 2 2 3 Detach 8 | . 1 . 2 3 2 Swap 7 | . 1 . 1 2 3 Drop 27 | . 9 1 1 8 8 Fire 91 | . 16 13 19 12 31 Melee . | . . . . . . Ram 1 | . . . . . 1 Kick . | . . . . . . Crush . | . . . . . . Escape Stasis 7 | . . . . . 7 Rewire . | . . . . . . Trap . | . . . . . . Miscellaneous . | . . . . . . Route ------- -11/Junkyard -10/Materials -10/Mines -9/Materials (discovered 2 exits: *Mat / Min) -8/Materials -8/Garrison (discovered 1 exit: [*Mat]) History --------- Turn | Location | Event 1 | -11/Junkyard | Discovered new exit (range 0) 1 | -11/Junkyard | Entered Materials 173 | -10/Materials | Discovered new exit (range 11) 182 | -10/Materials | Entered Mines 309 | -10/Mines | Build established: Mutant 396 | -10/Mines | Discovered new exit (range 9) 417 | -10/Mines | Entered Materials 417 | -9/Materials | Accompanied by 2 allies 417 | -9/Materials | Evolved 2 slots: Propulsion x1, Weapon x1 418 | -9/Materials | Identified exit to Mines 422 | -9/Materials | Led the pair of lost Derelicts to an unsafe place 492 | -9/Materials | Repaired Hover Unit 577 | -9/Materials | Discovered new exit (range 15) 619 | -9/Materials | Entered another Materials area 619 | -8/Materials | Evolved 2 slots: Utility x1, Weapon x1 677 | -8/Materials | Garrison activated, responded to threat 720 | -8/Materials | Build established: Skirmisher 827 | -8/Materials | Identified exit to Garrison 827 | -8/Materials | Entered Garrison 866 | -8/Garrison | Rescued a captive Derelict 867 | -8/Garrison | Rescued a captive Derelict 894 | -8/Garrison | Triggered checkpoint 918 | -8/Garrison | Garrison Relay disabled 949 | -8/Garrison | Garrison Relay disabled 976 | -8/Garrison | Triggered checkpoint 1121 | -8/Garrison | Build established: Tank 1136 | -8/Garrison | Triggered checkpoint 1204 | -8/Garrison | Triggered checkpoint 1218 | -8/Garrison | Assembled breached garrison interior 1260 | -8/Garrison | Released all parts (11) 1262 | -8/Garrison | Destroyed 7 combat bots 1280 | -8/Garrison | Core integrity fell below 50% 1288 | -8/Garrison | Discovered new exit (range 10) 1300 | -8/Garrison | Attempted to access garrison exit controls, blocked by remote lockdown 1301 | -8/Garrison | Self-destructed Last Messages --------------- 01282_ Field strength at 71. 01283_ Field strength at 79. 01283_ Field strength at 51. 01283_ Field strength at 65. 01283_ Field strength at 64. 01284_ Field strength at 72. 01284_ Field strength at 44. 01284_ Field strength at 58. 01284_ Field strength at 57. 01285_ Field strength at 65. 01285_ Field strength at 37. 01285_ Field strength at 51. 01285_ Field strength at 50. 01286_ Field strength at 58. 01286_ Field strength at 44. 01286_ Field strength at 43. 01288_ EXIT=FOUND 01297_ Slammed into as-46759. 01300_ Attempting to access garrison exit controls... 01300_ Remote lockdown engaged. Map ----- +----------------------------------------------------+ | | | | | | | | | | | | | | | | | | | | | | | ?????????????????????????????????????????????????? | | ?????????????????????????????????????????????????? | | ?????????????????????????????????????????????????? | | ?????????????????????????????????????????????????? | | ?????????????????????????????????????????????????? | | ?????????????????????????????????????????????????? | | ?????????????????????????????????????????????????? | | ?????????????????????????????????????????????????? | | ?????????????????????????????????????????????????? | | ?????????????????????????????????????????????????? | | ??????????????????????#######????????????????????? | | ??????????????????????# #????????????????????? | | ??????????????????????# < #?#######????????????? | | ??????????????????????# a ### #????????????? | | ??????????????????????###@aa #????????????? | | ????????????????????????# a ## # #????????????? | | ????????????????????????# a## ## #????????????? | | ????????????????????????#aaa######?##????????????? | | ????????????????????????# #????????????????????? | | ????????????????????????#a #????????????????????? | | ????????????????????????#a #????????????????????? | | ????????????????????????# #????????????????????? | | ????????????????????????# #????????????????????? | | ????????????????????????# a #????????????????????? | | ????????????????????????# #????????????????????? | | ????????????????????????# a #????????????????????? | | ????????????????????????# a #????????????????????? | | ????????????????????????# a#????????????????????? | | ????????????????????????# #????????????????????? | | ????????????????????????#a #????????????????????? | | ????????????????????????# #????????????????????? | | ????????????????????????# #????????????????????? | | ????????????????????????# #????????????????????? | | ????????????############# #??????????????????### | | ?????????# #?????????????????? | | ?????????# #?????????????????? | | ???????????# ##### ## #?????????????????? # | | ???????????????????# ?# #?????????????????? # | | ???????????????????###??# #?????????????????# # | +----------------------------------------------------+ Best States ------------- Heat Dissipation 45 Energy Generation 18 Energy Capacity 250 Matter Stores 300 Matter Capacity 300 Sight Range 16 Robot Scan Range 14 Terrain Scan Density 10 Armor Coverage 225 Resistance: KI 20 Resistance: TH 20 Resistance: EX 20 Resistance: EM 20 Resistance: I 20 Resistance: S 20 Resistance: P 20 Evasion (%) 55 Recoil Reduction 3 Offensive Hacking 10 Item Schematics ----------------- None Robot Schematics ------------------ None Fabricated ------------ Nothing Alien Tech Used ----------------- None Achievements -------------- None Challenges ------------ None Game ------ Seed WeightStealthCloak Manual? 0 Play Time 00:11:16 Cumulative 521.4 hours Start 2023.07.25 @ 11:31:43 End 2023.07.25 @ 11:42:26 Sessions 1 Manual Loads 0 Difficulty Adventurer Special Mode None Game No. 397 Rogue 167 Adventurer 87 Explorer 143 Win Type - Total 23 Types 19/0/3/0/0/0/0/1/0 Lore% 71 Gallery% 88 Achievement% 73 Wizard Run 0 Options --------- ASCII 0 Keyboard 1 Movement Numpad Keybinds 0 Fullscreen 2 Font 18/X11Bold Map View 76x50 Tactical HUD 1 Map Filters NONE Filters NONE Steam 1 RUN: 2874817e-5707-4bb7-898c-a2c6926324f5